bitfinex/quotes_BTCUSD_20250825
["timestamp","ask_amount","ask_price","bid_price","bid_amount"]
[1756082197537,0.90192407,113040.0,113030.0,0.17685]
[1756082197793,0.89980407,113040.0,113030.0,0.17685]
[1756082198177,0.90192407,113040.0,113030.0,0.17685]
[1756082198388,0.90192407,113040.0,113030.0,0.17389]
[1756082198607,1.07885259,113040.0,113030.0,0.17685]
[1756082198802,0.90192407,113040.0,113030.0,0.17685]
[1756082198973,1.07885259,113040.0,113030.0,0.17172]
[1756082199177,0.03283863,113040.0,113030.0,0.17389]
[1756082199390,0.90192407,113040.0,113030.0,0.17389]
[1756082199592,0.03283863,113040.0,113030.0,0.17389]
[1756082199771,0.90192407,113040.0,113030.0,0.17389]
[1756082200200,0.03283863,113040.0,113030.0,0.17389]
[1756082200518,1.06500734,113040.0,113030.0,0.17172]
[1756082200686,0.88807882,113040.0,113030.0,0.17389]
[1756082201048,0.88807882,113040.0,113030.0,0.1916]
[1756082201049,0.87168396,113040.0,113030.0,0.1916]
[1756082201282,0.87168396,113040.0,113030.0,0.17389]
[1756082201904,0.00259852,113040.0,113030.0,0.17389]
[1756082202324,0.87168396,113040.0,113030.0,0.17389]
[1756082202552,0.00259852,113040.0,113030.0,0.17685]
[1756082202760,0.87168396,113040.0,113030.0,0.17172]
[1756082202966,0.87168396,113040.0,113030.0,0.17389]
[1756082203599,1.04861248,113040.0,113030.0,0.005]
[1756082203816,1.06560771,113040.0,113030.0,0.1704]
[1756082204444,1.06560771,113040.0,113030.0,0.005]
[1756082204657,1.06560771,113040.0,113030.0,0.17052]
[1756082204864,0.19652227,113040.0,113030.0,0.17052]
[1756082205080,1.06560771,113040.0,113030.0,0.17052]
[1756082205763,1.06245771,113040.0,113030.0,0.17269]
[1756082205981,0.88552919,113040.0,113030.0,0.17269]
[1756082206436,1.06245771,113040.0,113030.0,0.005]
[1756082206657,1.93469315,113040.0,113030.0,0.005]
[1756082207073,2.10077315,113040.0,113030.0,0.005]
[1756082207481,6.8959499,113040.0,113030.0,0.005]
[1756082207911,0.17697548,113010.0,113000.0,0.07731397]
[1756082208148,1.05134092,113010.0,113000.0,0.001]
[1756082208369,1.05134092,113010.0,113000.0,0.16708]
[1756082208578,1.05134092,113010.0,113000.0,0.001]
[1756082209038,1.39134092,113010.0,113000.0,0.001]
[1756082209247,5.84651767,113010.0,113000.0,0.001]
[1756082209691,5.86036838,113010.0,113000.0,0.001]
[1756082210158,5.86036838,113010.0,113000.0,0.004]
[1756082210392,5.86036838,113010.0,113000.0,0.008]
[1756082210610,5.86036838,113010.0,113000.0,0.004]
[1756082211474,5.86036838,113010.0,113000.0,0.001]
[1756082211690,4.99228294,113010.0,113000.0,0.001]
[1756082211906,5.86136838,113010.0,113000.0,0.001]
[1756082212116,6.02712838,113010.0,113000.0,0.001]
[1756082212335,5.86136838,113010.0,113000.0,0.001]
[1756082212548,5.84851767,113010.0,113000.0,0.001]
[1756082212751,5.92731292,113010.0,113000.0,0.001]
[1756082212990,1.39019092,113010.0,113000.0,0.001]
[1756082213194,0.68678548,113010.0,113000.0,0.001]
[1756082213413,1.55587092,113010.0,113000.0,0.00317]
[1756082213617,1.55579092,113010.0,113000.0,0.00317]
[1756082213835,1.55579092,113010.0,113000.0,0.001]
[1756082214042,0.52110548,113010.0,113000.0,0.00317]
[1756082214268,0.34666548,113010.0,113000.0,0.00317]
[1756082214497,1.21483092,113010.0,113000.0,0.00317]
[1756082214705,1.21483092,113010.0,113000.0,0.002]
[1756082214924,1.21787092,113010.0,113000.0,0.002]
[1756082215145,1.21687092,113010.0,113000.0,0.002]
[1756082216254,1.21687092,113010.0,113000.0,0.003]
[1756082216686,1.64375567,113010.0,113000.0,0.003]
[1756082217594,6.01204767,113010.0,113000.0,0.003]
[1756082218042,6.01204767,113010.0,113000.0,0.002]
[1756082218250,6.01204767,113010.0,113000.0,0.001]
[1756082219046,6.01304767,113010.0,113000.0,0.001]
[1756082219460,5.98818743,113010.0,113000.0,0.001]
[1756082219702,5.99004743,113010.0,113000.0,0.001]
[1756082220125,5.82460743,113010.0,113000.0,0.001]
[1756082220338,1.61847543,113010.0,113000.0,0.00615]
[1756082220583,1.52965068,113010.0,113000.0,0.00615]
[1756082220816,1.53453068,113010.0,113000.0,0.001]
[1756082221034,1.62141543,113010.0,113000.0,0.001]
[1756082221250,1.61941543,113010.0,113000.0,0.001]
[1756082221472,0.75032999,113010.0,113000.0,0.001]
[1756082221693,1.62069543,113010.0,113000.0,0.001]
[1756082221944,1.61668543,113010.0,113000.0,0.001]
[1756082222192,0.75060999,113010.0,113000.0,0.001]
[1756082222417,1.61768543,113010.0,113000.0,0.001]
[1756082222642,1.45228543,113010.0,113000.0,0.001]
[1756082222862,1.61668543,113010.0,113000.0,0.001]
[1756082223285,1.61969543,113010.0,113000.0,0.001]
[1756082223700,1.63053696,113010.0,113000.0,0.001]
[1756082223913,1.63354696,113010.0,113000.0,0.001]
[1756082224356,0.76446152,113010.0,113000.0,0.001]
[1756082224587,0.76145152,113010.0,113000.0,0.00317]
[1756082224822,1.54206221,113010.0,113000.0,0.00615]
[1756082225259,1.54393221,113010.0,113000.0,0.00317]
[1756082225483,1.54393221,113010.0,113000.0,0.001]
[1756082225748,1.54393221,113010.0,113000.0,0.00317]
[1756082225971,1.54393221,113010.0,113000.0,0.001]
[1756082226858,1.54393221,113010.0,113000.0,0.00317]
[1756082227735,1.54393221,113010.0,113000.0,0.00615]
[1756082228402,0.67484677,113010.0,113000.0,0.00615]
[1756082228634,1.54393221,113010.0,113000.0,0.00317]
[1756082228853,1.54393221,113010.0,113000.0,0.001]
[1756082229610,1.54393221,113010.0,113000.0,0.00317]
[1756082230036,1.54393221,113010.0,113000.0,0.002]
[1756082230248,1.54393221,113010.0,113000.0,0.003]
[1756082232449,1.54393221,113010.0,113000.0,0.00517]
[1756082232868,1.54393221,113010.0,113000.0,0.003]
[1756082234401,1.63382696,113010.0,113000.0,0.003]
[1756082235051,1.63081696,113010.0,113000.0,0.003]
[1756082235898,1.63017696,113010.0,113000.0,0.003]
[1756082238070,1.62997696,113010.0,113000.0,0.003]
[1756082238833,1.46513696,113010.0,113000.0,0.00517]
[1756082239060,1.54122221,113010.0,113000.0,0.00815]
[1756082240012,1.54320221,113010.0,113000.0,0.00517]
[1756082240231,1.54320221,113010.0,113000.0,0.00815]
[1756082240448,1.54320221,113010.0,113000.0,0.00517]
[1756082240684,1.54320221,113010.0,113000.0,0.003]
[1756082240908,1.54623221,113010.0,113000.0,0.003]
[1756082241140,1.54320221,113010.0,113000.0,0.003]
[1756082241366,1.54312221,113010.0,113000.0,0.003]
[1756082241585,1.54308221,113010.0,113000.0,0.003]
[1756082241829,1.37836221,113010.0,113000.0,0.003]
[1756082242081,1.54300221,113010.0,113000.0,0.002]
[1756082242307,5.98735743,113010.0,113000.0,0.002]
[1756082242771,5.98735743,113010.0,113000.0,0.001]
[1756082245723,6.00120936,113010.0,113000.0,0.001]
[1756082249415,6.98993548,113010.0,113000.0,0.001]
[1756082250714,6.98690548,113010.0,113000.0,0.001]
[1756082250931,6.98574548,113010.0,113000.0,0.001]
[1756082251139,6.98574548,113010.0,113000.0,0.00612]
[1756082251347,5.12595392,113010.0,113000.0,0.00612]
[1756082251626,6.98376548,113010.0,113000.0,0.00612]
[1756082251842,6.0548997,113010.0,113000.0,0.00612]
[1756082252314,6.0548197,113010.0,113000.0,0.00612]
[1756082252751,5.8913797,113010.0,113000.0,0.00612]
[1756082252980,1.59960295,113010.0,113000.0,0.00612]
[1756082253202,1.59960295,113010.0,113000.0,0.001]
[1756082253203,1.58774102,113010.0,113000.0,0.001]
[1756082253421,1.58575102,113010.0,113000.0,0.00612]
[1756082254583,2.5166468,113010.0,113000.0,0.00612]
[1756082254808,2.5432568,113010.0,113000.0,0.00307]
[1756082255045,2.5432568,113010.0,113000.0,0.001]
[1756082255499,1.64611476,113010.0,113000.0,0.001]
[1756082255709,1.64312476,113010.0,113000.0,0.001]
[1756082256809,1.63759434,113010.0,113000.0,0.001]
[1756082258160,1.67768882,113010.0,113000.0,0.001]
[1756082259858,1.68067882,113010.0,113000.0,0.001]
[1756082260278,1.67768882,113010.0,113000.0,0.001]
[1756082261862,0.18785512,112960.0,112940.0,0.02661]
[1756082262123,0.17708517,112940.0,112930.0,0.36848]
[1756082262336,1.04787994,112940.0,112930.0,0.45536475]
[1756082262548,1.04787994,112940.0,112930.0,0.45743475]
[1756082262765,0.17708517,112940.0,112930.0,0.45743475]
[1756082262981,0.87079477,112940.0,112930.0,0.15743475]
[1756082263199,1.04835787,112940.0,112930.0,0.15743475]
[1756082263413,1.04835787,112940.0,112930.0,0.16243475]
[1756082263625,1.04835787,112940.0,112930.0,0.15743475]
[1756082264071,1.04835787,112940.0,112930.0,0.16448475]
[1756082264304,1.04835787,112940.0,112930.0,0.00952]
[1756082264509,0.00047793,112940.0,112930.0,0.09640475]
[1756082264712,0.8712727,112940.0,112930.0,0.09940475]
[1756082264927,0.00047793,112940.0,112930.0,0.09940475]
[1756082265136,0.8712727,112940.0,112930.0,0.09940475]
[1756082265800,1.04835787,112940.0,112930.0,0.01252]
[1756082266865,0.8712727,112940.0,112930.0,0.01252]
[1756082267075,0.8712727,112940.0,112930.0,0.09940475]
[1756082267492,1.04835787,112940.0,112930.0,0.09940475]
[1756082267708,0.8712727,112940.0,112930.0,0.09940475]
[1756082268380,0.00047793,112940.0,112930.0,0.09940475]
[1756082268594,0.8712727,112940.0,112930.0,0.09940475]
[1756082269625,0.00047793,112940.0,112930.0,0.09940475]
[1756082269828,0.8712727,112940.0,112930.0,0.09940475]
[1756082272854,0.8712727,112940.0,112930.0,0.26232475]
[1756082273796,0.1775631,112940.0,112930.0,0.26232475]
[1756082274002,0.8712727,112940.0,112930.0,0.26232475]
[1756082275201,0.8712727,112940.0,112930.0,0.29536523]
[1756082276040,1.04835787,112940.0,112930.0,0.13244523]
[1756082276292,1.05339787,112940.0,112930.0,0.20300048]
[1756082276505,1.00339787,112940.0,112930.0,0.20300048]
[1756082276794,1.00339787,112940.0,112930.0,0.04044048]
[1756082276962,1.00339787,112940.0,112930.0,0.0074]
[1756082277414,1.11181813,112940.0,112930.0,0.0074]
[1756082278248,1.10883813,112940.0,112930.0,0.00949]
[1756082278465,0.17914517,112940.0,112930.0,0.00840987]
[1756082278652,1.10883813,112940.0,112930.0,0.17052987]
[1756082279036,1.12567556,112940.0,112930.0,0.19259986]
[1756082279900,0.26708423,112940.0,112930.0,0.00631987]
[1756082280123,1.18291976,112940.0,112930.0,0.00631987]
[1756082280344,1.20954476,112940.0,112930.0,0.00631987]
[1756082280788,1.20954476,112940.0,112930.0,0.003]
[1756082281073,1.21054476,112940.0,112930.0,0.003]
[1756082281300,1.21054476,112940.0,112910.0,0.00299]
[1756082281301,0.17710085,112930.0,112920.0,0.16208]
[1756082281548,0.17916085,112930.0,112920.0,0.178587]
[1756082281759,1.10885381,112930.0,112920.0,0.178587]
[1756082282184,1.10885381,112930.0,112920.0,0.180677]
[1756082282420,1.10885381,112930.0,112920.0,0.016507]
[1756082282650,1.11184381,112930.0,112910.0,0.16507]
[1756082282869,0.17916085,112930.0,112920.0,0.00209]
[1756082283118,0.17916085,112930.0,112920.0,0.00309]
[1756082283577,0.37763442,112940.0,112920.0,0.00608]
[1756082283797,0.33915052,112950.0,112920.0,0.27229359]
[1756082284007,0.33915052,112950.0,112930.0,0.16208]
[1756082284008,0.17707052,112950.0,112930.0,0.16208]
[1756082284222,1.13544648,112950.0,112940.0,0.00209]
[1756082284453,0.028683,112950.0,112940.0,0.00209]
[1756082284664,0.18211949,112950.0,112930.0,0.31708475]
[1756082284875,1.10677813,112940.0,112930.0,0.31708475]
[1756082285093,1.10883813,112940.0,112930.0,0.35743357]
[1756082285974,0.18213517,112940.0,112930.0,0.35634357]
[1756082286230,1.11182813,112940.0,112930.0,0.35843357]
[1756082286449,1.11182813,112940.0,112930.0,0.26845882]
[1756082286660,1.11182813,112940.0,112930.0,0.03825882]
[1756082286876,0.17710085,112930.0,112920.0,0.01818793]
[1756082287104,1.11184381,112930.0,112920.0,0.00047793]
[1756082287341,1.11184381,112930.0,112920.0,0.16255793]
[1756082287610,1.1257027,112930.0,112920.0,0.16255793]
[1756082288303,1.1257027,112930.0,112920.0,0.16455793]
[1756082288530,1.1257027,112930.0,112920.0,0.1886246]
[1756082288812,1.1257027,112930.0,112920.0,0.004]
[1756082289737,1.11184381,112930.0,112920.0,0.004]
[1756082291509,0.17713222,112910.0,112900.0,0.06812]
[1756082291717,1.10888518,112910.0,112900.0,0.31989475]
[1756082291933,1.10888518,112910.0,112900.0,0.19029681]
[1756082292135,1.11187518,112910.0,112900.0,0.35088681]
[1756082292350,1.10888518,112910.0,112900.0,0.35297681]
[1756082292984,1.10888518,112910.0,112900.0,0.12516681]
[1756082293224,1.10888518,112910.0,112900.0,0.00209]
[1756082293440,1.11187518,112910.0,112900.0,0.16552]
[1756082293690,0.18218222,112910.0,112900.0,0.16252]
[1756082294032,1.11187518,112910.0,112900.0,0.16252]
[1756082294034,1.11187518,112910.0,112900.0,0.16452]
[1756082294240,1.11187518,112910.0,112900.0,0.18206459]
[1756082294452,1.11187518,112910.0,112900.0,0.18406459]
[1756082294888,1.11187518,112910.0,112900.0,0.16849]
[1756082294889,0.17919222,112910.0,112900.0,0.16849]
[1756082295036,1.11187518,112910.0,112900.0,0.004]
[1756082295448,0.34032089,112920.0,112900.0,0.00908]
[1756082295682,0.92969296,112910.0,112900.0,0.00908]
[1756082296049,0.20420793,112930.0,112910.0,0.00299]
[1756082296264,0.95978889,112930.0,112910.0,0.16619]
[1756082296740,0.93223089,112930.0,112920.0,0.00209]
[1756082296965,1.10933174,112930.0,112920.0,0.00209]
[1756082297626,0.00147793,112930.0,112920.0,0.00508]
[1756082297853,0.93017089,112930.0,112920.0,0.00508]
[1756082298065,1.10827174,112930.0,112920.0,0.00508]
[1756082298277,0.93323089,112930.0,112920.0,0.00209]
[1756082298502,1.11332174,112930.0,112910.0,0.27773227]
[1756082298717,1.11332174,112930.0,112910.0,0.36461702]
[1756082298927,0.92969296,112920.0,112910.0,0.36461702]
[1756082299139,0.92969296,112920.0,112910.0,0.36670702]
[1756082299352,0.93175296,112920.0,112910.0,0.36371702]
[1756082299562,0.93474296,112920.0,112910.0,0.13030702]
[1756082299770,1.1118595,112920.0,112910.0,0.13239702]
[1756082299978,0.93175296,112920.0,112910.0,0.13239702]
[1756082300191,1.1118595,112920.0,112910.0,0.13239702]
[1756082300614,1.1118595,112920.0,112910.0,0.43239702]
[1756082301227,1.1118595,112920.0,112910.0,0.43339702]
[1756082301438,1.1118595,112920.0,112910.0,0.34442227]
[1756082301655,1.12571926,112920.0,112910.0,0.301]
[1756082302411,1.28867926,112920.0,112910.0,0.301]
[1756082302636,1.2748195,112920.0,112910.0,0.301]
[1756082303525,0.34512654,112920.0,112910.0,0.301]
[1756082303780,1.2748195,112920.0,112910.0,0.301]
[1756082304132,0.34512654,112920.0,112910.0,0.301]
[1756082304358,1.2748195,112920.0,112910.0,0.301]
[1756082305186,1.1384905,112920.0,112910.0,0.301]
[1756082305408,1.3011305,112920.0,112910.0,0.301]
[1756082306251,0.37143754,112920.0,112910.0,0.301]
[1756082306484,1.3011305,112920.0,112910.0,0.301]
[1756082307893,1.3011305,112920.0,112910.0,0.3]
[1756082308324,1.3021305,112920.0,112910.0,0.3]
[1756082308536,1.3021305,112920.0,112910.0,0.29911282]
[1756082308751,1.3020105,112920.0,112910.0,0.29911282]
[1756082309216,0.20979754,112920.0,112910.0,0.29911282]
[1756082309438,1.3019305,112920.0,112910.0,0.29911282]
[1756082309667,1.1394905,112920.0,112910.0,0.29911282]
[1756082309880,1.3019305,112920.0,112910.0,0.29911282]
[1756082310263,0.20979754,112920.0,112910.0,0.29911282]
[1756082310494,1.3018905,112920.0,112910.0,0.29911282]
[1756082311657,1.3417257,112920.0,112910.0,0.29911282]
[1756082311960,0.41203274,112920.0,112910.0,0.29911282]
[1756082312170,1.3417257,112920.0,112910.0,0.29911282]
[1756082312586,1.3417257,112920.0,112910.0,0.29213801]
[1756082313099,1.1793257,112920.0,112910.0,0.29213801]
[1756082313344,1.3414857,112920.0,112910.0,0.29213801]
[1756082314342,5.86478245,112920.0,112910.0,0.29213801]
[1756082315521,5.70262245,112920.0,112910.0,0.29213801]
[1756082315721,5.86478245,112920.0,112910.0,0.29213801]
[1756082316267,5.90374291,112920.0,112910.0,0.29213801]
[1756082316587,6.83343587,112920.0,112910.0,0.29213801]
[1756082317023,7.15727274,112920.0,112910.0,0.29213801]
[1756082317249,7.15932274,112920.0,112910.0,0.29213801]
[1756082317472,0.17714791,112900.0,112890.0,0.00913587]
[1756082317686,6.49376058,112900.0,112890.0,0.00913587]
[1756082317899,6.6810186,112900.0,112890.0,0.00913587]
[1756082318044,6.65592058,112900.0,112890.0,0.00913587]
[1756082318263,6.66978537,112900.0,112890.0,0.00913587]
[1756082318879,6.67163537,112900.0,112890.0,0.00913587]
[1756082319256,4.81224945,112900.0,112890.0,0.00913587]
[1756082319514,5.76069566,112900.0,112890.0,0.00913587]
[1756082319941,5.78733766,112900.0,112890.0,0.00913587]
[1756082320577,5.78833766,112900.0,112890.0,0.00913587]
[1756082321057,5.61231287,112900.0,112890.0,0.00913587]
[1756082321284,5.77447287,112900.0,112890.0,0.00913587]
[1756082324150,5.78833807,112900.0,112890.0,0.00913587]
[1756082324383,5.62617807,112900.0,112890.0,0.00913587]
[1756082324638,5.78833807,112900.0,112890.0,0.00913587]
[1756082326046,5.62617807,112900.0,112890.0,0.00913587]
[1756082326282,5.78833807,112900.0,112890.0,0.00913587]
[1756082328246,5.62617807,112900.0,112890.0,0.00913587]
[1756082328507,5.78648807,112900.0,112890.0,0.00913587]
[1756082328942,5.78833807,112900.0,112890.0,0.00913587]
[1756082329614,5.62617807,112900.0,112890.0,0.00913587]
[1756082329854,5.78833807,112900.0,112890.0,0.00913587]
[1756082330517,5.78648807,112900.0,112890.0,0.00913587]
[1756082332252,4.67588186,112900.0,112890.0,0.00913587]
[1756082332488,5.78641807,112900.0,112890.0,0.01428587]
[1756082332705,5.78641807,112900.0,112890.0,0.00913587]
[1756082333181,6.16973939,112900.0,112890.0,0.00913587]
[1756082333662,6.15342609,112900.0,112890.0,0.00913587]
[1756082334301,6.16973559,112900.0,112890.0,0.00913587]
[1756082334720,6.15887039,112900.0,112890.0,0.00913587]
[1756082335156,0.51716361,112890.0,112880.0,0.0004]
[1756082335370,6.29365361,112890.0,112880.0,0.0004]
[1756082335564,6.31383883,112890.0,112880.0,0.0004]
[1756082336479,6.31583883,112890.0,112880.0,0.00054934]
[1756082337327,5.2499436,112890.0,112880.0,0.00054934]
[1756082337588,6.19647981,112890.0,112880.0,0.00054934]
[1756082337797,6.19838981,112890.0,112880.0,0.00054934]
[1756082338014,6.00678436,112890.0,112880.0,0.00250934]
[1756082338225,6.30464264,112890.0,112880.0,0.00054934]
[1756082338653,6.34549406,112890.0,112880.0,0.00054934]
[1756082339355,1.46562551,112880.0,112870.0,0.37801908]
[1756082339547,7.17738909,112880.0,112870.0,0.32269759]
[1756082339744,7.20424711,112880.0,112870.0,0.24909051]
[1756082339971,0.1772264,112850.0,112840.0,0.00308]
[1756082340421,6.72500693,112850.0,112840.0,0.00504]
[1756082340425,6.88716693,112850.0,112840.0,0.00504]
[1756082340891,4.72721315,112850.0,112840.0,0.00504]
[1756082341128,6.91393693,112850.0,112840.0,0.00504]
[1756082341369,6.91441437,112850.0,112840.0,0.00504]
[1756082341590,5.73991248,112850.0,112840.0,0.00504]
[1756082342023,5.91155498,112850.0,112840.0,0.00504]
[1756082342247,5.82467023,112850.0,112840.0,0.00504]
[1756082342457,0.37595634,112850.0,112840.0,0.00504]
[1756082342668,1.38817823,112850.0,112840.0,0.00504]
[1756082342907,0.02712744,112850.0,112840.0,0.09192475]
[1756082343134,0.00047744,112850.0,112840.0,0.11928608]
[1756082343588,0.00047744,112850.0,112840.0,0.29652819]
[1756082344067,1.01269933,112850.0,112840.0,0.11928608]
[1756082344293,0.00047744,112850.0,112840.0,0.12328608]
[1756082344520,1.01269933,112850.0,112840.0,0.12328608]
[1756082344753,0.00047744,112850.0,112840.0,0.12328608]
[1756082345452,0.00047744,112850.0,112840.0,0.30052819]
[1756082345928,0.00047744,112850.0,112840.0,0.30252819]
[1756082346384,0.00047744,112850.0,112840.0,0.37068819]
[1756082346601,0.00047744,112850.0,112840.0,0.36868819]
[1756082346822,0.00047744,112850.0,112840.0,0.37168819]
[1756082349836,0.00047744,112850.0,112840.0,0.38913721]
[1756082350069,0.00047744,112850.0,112840.0,1.4377132]
[1756082350521,0.00047744,112850.0,112840.0,0.65489721]
[1756082351198,0.00047744,112850.0,112840.0,0.65089721]
[1756082351417,0.00047744,112850.0,112840.0,0.65589721]
[1756082351978,0.00047744,112850.0,112840.0,0.65289721]
[1756082352170,0.00047744,112850.0,112840.0,0.65589721]
[1756082352459,0.00047744,112850.0,112840.0,0.55589721]
[1756082352720,0.00047744,112850.0,112840.0,0.65589721]
[1756082352981,0.00047744,112850.0,112840.0,0.65565721]
[1756082353233,0.00047744,112850.0,112840.0,0.53808819]
[1756082355215,0.00047744,112850.0,112840.0,0.36084608]
[1756082355953,0.00047744,112850.0,112840.0,0.53808819]
[1756082356413,0.00047744,112850.0,112840.0,0.36048608]
[1756082356641,0.17770384,112850.0,112840.0,0.16808475]
[1756082356873,0.17770384,112850.0,112840.0,0.33004475]
[1756082356874,1.12636983,112850.0,112840.0,0.33004475]
[1756082357084,0.17770384,112850.0,112840.0,0.33312475]
[1756082357305,0.17770384,112850.0,112840.0,0.26496475]
[1756082357519,1.12627983,112850.0,112840.0,0.26488475]
[1756082357733,0.17770384,112850.0,112840.0,0.29137323]
[1756082357949,0.17770384,112850.0,112840.0,0.28637323]
[1756082358401,0.17770384,112850.0,112840.0,0.28537323]
[1756082358626,0.17779384,112850.0,112840.0,0.28737323]
[1756082358848,1.12627983,112850.0,112840.0,0.28737323]
[1756082359286,1.12627983,112850.0,112840.0,0.12241323]
[1756082359509,1.12627983,112850.0,112840.0,0.26088475]
[1756082360225,0.17770384,112850.0,112840.0,0.26088475]
[1756082361093,0.00047744,112850.0,112840.0,0.26088475]
[1756082361312,0.00047744,112850.0,112840.0,0.43812686]
[1756082361750,0.00047744,112850.0,112840.0,0.26088475]
[1756082361969,0.00047744,112850.0,112840.0,0.30469886]
[1756082362617,0.00047744,112850.0,112840.0,0.48194097]
[1756082363075,0.00047744,112850.0,112840.0,0.30469886]
[1756082367029,0.00047744,112850.0,112840.0,0.30425886]
[1756082369365,0.00047744,112850.0,112840.0,0.47950097]
[1756082369825,0.00047744,112850.0,112840.0,0.47750097]
[1756082370063,0.00047744,112850.0,112840.0,0.47950097]
[1756082371425,0.00047744,112850.0,112840.0,0.48150097]
[1756082371851,0.00047744,112850.0,112840.0,0.30425886]
[1756082372286,0.00047744,112850.0,112840.0,0.48150097]
[1756082374514,0.00047744,112850.0,112840.0,0.30425886]
[1756082374989,0.00047744,112850.0,112840.0,0.48150097]
[1756082375696,0.00047744,112850.0,112840.0,0.30409886]
[1756082376144,0.00047744,112850.0,112840.0,0.30153886]
[1756082377609,0.00047744,112850.0,112840.0,0.13717886]
[1756082377829,0.00047744,112850.0,112840.0,0.30221886]
[1756082384198,0.00047744,112850.0,112840.0,0.13717886]
[1756082384341,0.00047744,112850.0,112840.0,0.30125886]
[1756082384539,0.00047744,112850.0,112840.0,0.30117886]
[1756082385128,0.00047744,112850.0,112840.0,0.47842097]
[1756082385975,0.00047744,112850.0,112840.0,0.30117886]
[1756082387266,0.00047744,112850.0,112840.0,0.13717886]
[1756082387471,1.26254916,112850.0,112840.0,0.08832475]
[1756082387667,1.26254916,112850.0,112840.0,0.16772]
[1756082387868,1.26445916,112850.0,112840.0,0.16768]
[1756082388069,1.26445916,112850.0,112840.0,0.004]
[1756082388271,1.26445916,112850.0,112840.0,0.16572]
[1756082388529,2.27622285,112850.0,112840.0,0.002]
[1756082388713,2.27622285,112850.0,112840.0,0.003]
[1756082388893,1.42861916,112850.0,112840.0,0.001]
[1756082389093,0.17725782,112830.0,112820.0,0.164]
[1756082389297,0.17725782,112830.0,112810.0,0.07112]
[1756082389298,1.19100151,112830.0,112810.0,0.07112]
[1756082389543,1.19100151,112830.0,112820.0,0.16428]
[1756082389747,0.35279516,112850.0,112820.0,0.16934]
[1756082389955,1.36264885,112850.0,112830.0,0.00296]
[1756082391133,0.17724211,112840.0,112830.0,0.00296]
[1756082391340,0.00198,112840.0,112830.0,0.00506]
[1756082391542,0.17922211,112840.0,112830.0,0.00506]
[1756082391764,1.36364885,112850.0,112830.0,0.00506]
[1756082391765,0.35188516,112850.0,112830.0,0.00506]
[1756082391974,0.17922211,112840.0,112830.0,0.00296]
[1756082392169,1.1909858,112840.0,112830.0,0.0021]
[1756082392376,1.1909858,112840.0,112820.0,0.25412475]
[1756082392629,0.17922211,112840.0,112820.0,0.30458133]
[1756082392841,1.01176369,112830.0,112820.0,0.30458133]
[1756082393042,0.17923782,112830.0,112810.0,0.09684899]
[1756082393183,0.17923782,112830.0,112810.0,0.18373374]
[1756082393387,1.19100151,112830.0,112820.0,0.16436]
[1756082393591,0.17923782,112830.0,112820.0,0.16436]
[1756082393788,0.00198,112830.0,112820.0,0.20422937]
[1756082394217,1.3623479,112840.0,112820.0,0.20422937]
[1756082394460,0.00198,112830.0,112820.0,0.20422937]
[1756082394639,1.1978679,112840.0,112820.0,0.20522937]
[1756082394838,1.1890058,112840.0,112820.0,0.20226937]
[1756082395061,0.34164211,112840.0,112830.0,0.00312]
[1756082395280,0.17922211,112840.0,112830.0,0.00312]
[1756082395491,0.17922211,112840.0,112820.0,0.20228937]
[1756082395669,0.17922211,112840.0,112830.0,0.00312]
[1756082395878,0.17922211,112840.0,112820.0,0.20016937]
[1756082396098,0.17922211,112840.0,112820.0,0.20328937]
[1756082396317,1.36252885,112850.0,112830.0,0.00515]
[1756082396490,0.17922211,112840.0,112820.0,0.20228937]
[1756082396675,1.1909858,112840.0,112820.0,0.20228937]
[1756082396885,1.2176348,112840.0,112820.0,0.20228937]
[1756082398439,1.1909858,112840.0,112820.0,0.20228937]
[1756082398682,1.01374369,112840.0,112830.0,0.00203]
[1756082398826,0.17922251,112840.0,112820.0,0.20228937]
[1756082399233,0.18113251,112840.0,112820.0,0.19916937]
[1756082399531,1.1909862,112840.0,112820.0,0.20228937]
[1756082399720,0.17922251,112840.0,112820.0,0.20228937]
[1756082399922,1.2176352,112840.0,112820.0,0.20228937]
[1756082400577,1.04039269,112840.0,112820.0,0.20228937]
[1756082400790,0.028629,112840.0,112830.0,0.00203]
[1756082401005,0.00047744,112850.0,112830.0,0.00515]
[1756082401221,1.01224113,112850.0,112830.0,0.00736572]
[1756082401423,0.02712444,112850.0,112840.0,0.00312]
[1756082401634,0.02712444,112850.0,112830.0,0.18037652]
[1756082401846,1.21611463,112850.0,112830.0,0.05968827]
[1756082402073,0.20435094,112850.0,112830.0,0.05968827]
[1756082402252,1.1911558,112840.0,112830.0,0.06171827]
[1756082402501,1.1911558,112840.0,112820.0,0.37643894]
[1756082402502,1.1911558,112840.0,112820.0,0.19916937]
[1756082402701,1.1911558,112840.0,112820.0,0.28917412]
[1756082402877,1.1911558,112840.0,112820.0,0.46644757]
[1756082403098,1.19115617,112840.0,112820.0,0.46644757]
[1756082403311,0.00215,112840.0,112830.0,0.00515]
[1756082403485,1.01391369,112840.0,112820.0,0.46644757]
[1756082403903,0.00215,112840.0,112830.0,0.00515]
[1756082404305,1.01391369,112840.0,112820.0,0.46644757]
[1756082404709,1.19290769,112840.0,112820.0,0.28685412]
[1756082404903,1.19290769,112840.0,112820.0,0.46412748]
[1756082405106,0.00215,112840.0,112820.0,0.46724748]
[1756082405284,1.01391369,112840.0,112820.0,0.46724748]
[1756082405708,1.17911369,112840.0,112820.0,0.46724748]
[1756082405958,1.35635653,112840.0,112820.0,0.46724748]
[1756082406176,1.35811653,112840.0,112820.0,0.28997412]
[1756082406385,1.35635653,112840.0,112820.0,0.28997412]
[1756082406615,0.16735,112840.0,112820.0,0.46412717]
[1756082406844,0.18115306,112840.0,112820.0,0.25204475]
[1756082407078,0.17939306,112840.0,112820.0,0.25204475]
[1756082407320,0.17901782,112830.0,112820.0,0.08688475]
[1756082407574,0.17939782,112830.0,112810.0,0.00312]
[1756082407791,0.37833226,112850.0,112820.0,0.00515]
[1756082408003,0.18606362,112840.0,112820.0,0.00203]
[1756082408222,0.21321226,112850.0,112830.0,0.00312]
[1756082408438,0.39445226,112850.0,112830.0,0.00312]
[1756082408655,0.39445226,112850.0,112810.0,0.19461044]
[1756082408656,0.17922458,112840.0,112810.0,0.19461044]
[1756082408887,0.17922211,112840.0,112820.0,0.09231657]
[1756082409105,0.17724211,112840.0,112830.0,0.00203]
[1756082409324,0.17724211,112840.0,112830.0,0.00515]
[1756082409545,0.00198,112840.0,112830.0,0.00515]
[1756082409782,0.00198,112840.0,112820.0,0.09200475]